Cogmind - Beta 14 @@@ ROGUE MODE // 2025.01.10 @ 18:28:38 Player: Byrnorthil Result: Destroyed by H-66 Slayer with Heavy Assault Rifle Performance ------------- Evolutions (4) 2000 Regions Visited (5) 1000 Robots Destroyed (58) 290 Value Destroyed (1790) 1790 Prototype IDs (5) 100 Alien Tech Used (0) 0 Bonus (333) 333 TOTAL SCORE: 5513 Bonus ------- Follower Combat Kills 33 Registered with UFD 300 Cogmind --------- Core Integrity 0/850 Matter 300/300 Energy 96/100 System Corruption 2% Temperature Cool (0) Movement Core (50) Location -6/Factory Parts ------- > --- POWER (2) -------- (None) > --- PROPULSION (4) --- (None) > --- UTILITY (6) ------ Enhanced Optical Array Melee Analysis Suite > --- WEAPON (3) ------- (None) > --- INVENTORY (5) ---- Energy Well (350) Heavy Assault Rifle Rocket Launcher Companion Sword DRS Beacon (Ready) Peak State ------------ > --- POWER ------------ Light Deuterium Engine Micro Nuclear Core > --- PROPULSION ------- Aluminum Leg Improved Aluminum Leg Improved Aluminum Leg Armored Leg > --- UTILITY ---------- Scrap Suit Huge Storage Unit Advanced Terrain Scanner Improved Terrain Scan Processor Improved Reaction Control System > --- WEAPON ----------- Flail Power Sword Companion Sword > --- INVENTORY -------- Light Deuterium Engine Aluminum Leg Scrap Suit Large Storage Unit Energy Well Enhanced Optical Array Melee Analysis Suite Hardlight Generator Advanced Assault Cannon Magnetic Acceleration Cannon Rocket Launcher Plasma Cutter CPS Tube CPS Tube CPS Tube DRS Beacon [Rating: 57] Favorites ----------- Power Subdweller Power Source Engine Subdweller Power Source Power Core Micro Nuclear Core Propulsion Light Treads Treads Light Treads Leg Improved Aluminum Leg Wheel Compact Wheel Hover Unit Improved Hover Unit Utility Huge Storage Unit Device Improved Heat Sink Storage Huge Storage Unit Processor Melee Analysis Suite Protection Scrap Shield Weapon Spread Laser Energy Gun Spread Laser Ballistic Gun Barrage Gun Ballistic Cannon Slug Cannon Launcher Grenade Launcher Impact Weapon Flail Slashing Weapon Companion Sword Special Melee Weapon Datajack Build | -11 -10 -10 -9 -9 -6 ------- Run | Yrd Mat Sub Rec Scr Fac Slots Evolved 8 | . . . . . 8 Power 1 | . . . . . 1 Propulsion 2 | . . . . . 2 Utility 4 | . . . . . 4 Weapon 1 | . . . . . 1 Parts Attached 107 | 8 19 41 7 8 24 Power 6 | 1 1 1 . 1 2 Engine 5 | 1 1 1 . . 2 Core 1 | . . . . 1 . Reactor . | . . . . . . Propulsion 26 | 2 4 3 3 3 11 Treads 7 | . 4 1 1 . 1 Leg 8 | 2 . . . 3 3 Wheel 10 | . . 2 1 . 7 Hover 1 | . . . 1 . . Flight . | . . . . . . Utility 33 | 3 9 9 1 1 10 Device 16 | 2 4 4 1 1 4 Storage 5 | 1 2 1 . . 1 Processor 3 | . . . . . 3 Hackware . | . . . . . . Protection 9 | . 3 4 . . 2 Artifact . | . . . . . . Weapon 42 | 2 5 28 3 3 1 Energy Gun 11 | 2 4 5 . . . Energy Cannon . | . . . . . . Ballistic Gun 11 | . . 9 2 . . Ballistic Cannon 3 | . . 2 1 . . Launcher 3 | . 1 2 . . . Special Weapon . | . . . . . . Impact Weapon 1 | . . . . . 1 Slashing Weapon 12 | . . 10 . 2 . Piercing Weapon . | . . . . . . Special Melee Weapon 1 | . . . . 1 . Unidentified Prototypes 1 | . . . . 1 . Parts Lost 29 | . 3 4 . . 22 Power 5 | . 1 1 . . 3 Propulsion 15 | . 1 3 . . 11 Utility 5 | . . . . . 5 Weapon 4 | . 1 . . . 3 Highest Loss Streak 14 | . 2 1 . . 14 To Critical Strikes 2 | . . 1 . . 1 Average Slot Usage (%) 95 | . 99 87 97 99 79 Engine 8 | . 14 11 14 3 3 Core 4 | . . . . 10 5 Treads 15 | . 25 22 2 12 . Leg 1 | . 2 . . 2 10 Wheel 9 | . . 5 23 12 9 Device 9 | . 3 4 14 14 10 Storage 10 | . 14 5 14 14 5 Protection 4 | . 10 9 . . 3 Energy Gun 6 | . 27 11 . . 2 Ballistic Gun 8 | . . 10 18 5 . Ballistic Cannon 5 | . . . 9 10 . Launcher 1 | . . 2 . . . Slashing Weapon 4 | . . 2 . 7 11 Special Melee Weapon 1 | . . . . 4 . Peak Build Rating 57 | 9 11 16 23 35 57 Average Rating 18 | 6 10 11 18 24 46 On Entrance 14 | . 7 11 13 22 33 Naked Turns . | . . . . . . Heaviest Build 97 | 14 92 97 97 97 51 Greatest Support 52 | 20 40 40 36 26 52 Greatest Overweight (x) 6 | . 2 4 5 6 4 Average Overweight (x) 3 | . 1 . 2 5 . Largest Inventory Capacity 25 | 8 25 25 25 25 25 Average Capacity 20 | 7 22 12 25 25 14 Most Carried 25 | 6 19 21 25 25 24 Average Carried 17 | 3 15 10 18 23 13 Final Capacity 25 | 8 25 25 25 25 5 Final Carried 25 | 6 19 5 25 25 5 Class Distribution -------------------- 50% | Commander-Mutant 33% | Mutant 14% | Subdweller-Mutant Dominant Class ---------------- Mutant | -10/Materials Mutant | -10/Subcaves Commander-Mutant | -9/Recycling Commander-Mutant | -9/Scraptown Scavenger-Gladiator | -6/Factory Resources | -11 -10 -10 -9 -9 -6 ----------- Run | Yrd Mat Sub Rec Scr Fac Matter Collected 1693 | 280 227 486 408 70 222 Remotely . | . . . . . . Salvage Created 1817 | 108 509 436 159 . 605 Parts 111 | 8 36 20 10 . 37 Haulers Intercepted 2 | . 2 . . . . Recyclers Shooed 1 | 1 . . . . . Parts Field Recycled . | . . . . . . Retrieved Matter . | . . . . . . Parts Self-Destructed 18 | . . 18 . . . Prevented . | . . . . . . Kills | -11 -10 -10 -9 -9 -6 ------- Run | Yrd Mat Sub Rec Scr Fac Combat Hostiles Destroyed 42 | . 16 17 2 . 7 Melee 7 | . . . . . 7 Guns 27 | . 14 13 . . . Cannons 2 | . . . 2 . . AOE 6 | . 2 4 . . . Classes Destroyed 13 | 2 6 3 1 . 1 Worker 3 | . 1 . . . 2 Tunneler 2 | 2 . . . . . Hauler 2 | . 2 . . . . Recycler 2 | 1 . . . . 1 Operator 1 | . 1 . . . . Turret 2 | . . 2 . . . Watcher 4 | . 3 . . . 1 Swarmer 7 | . 3 4 . . . Grunt 16 | . 13 1 . . 2 Duelist 1 | . . . 1 . . Sentry 6 | . . 1 1 . 4 Hunter 1 | . . . . . 1 Subdweller 11 | . . 11 . . . Best Kill Streak 6 | 2 4 6 1 . 3 Combat Bots Only 4 | . 3 4 1 . 3 Max Kills in Single Turn 3 | 1 1 3 1 . 1 Gunslinging . | . . . . . . Exploded 3 | . 1 3 . . . Melee 1 | . . . . . 1 Uniques/NPCs Destroyed . | . . . . . . Combat | -11 -10 -10 -9 -9 -6 -------- Run | Yrd Mat Sub Rec Scr Fac Hostile Shots Fired 688 | . 80 125 10 . 473 Missed 236 | . 24 43 4 . 165 Damage Taken 5831 | . 725 1327 130 . 3649 Core 1090 | . 137 77 25 . 851 Absorbed by Shields 304 | . . . 6 . 298 Redirected to Shielding 32 | . 25 7 . . . Regen/Repaired (Parts) 144 | . 122 . . . 22 Core Remaining (%) 52 | 100 . . . 4 . Volleys Fired 140 | 7 50 65 18 . . Largest 2 | 2 2 2 2 . . Hottest 130 | 90 130 130 87 . . Shots Fired 266 | 14 94 124 34 . . Gun 224 | 14 92 103 15 . . Cannon 37 | . . 18 19 . . Launcher 5 | . 2 3 . . . Special . | . . . . . . Kinetic 100 | . . 66 34 . . Thermal 161 | 14 92 55 . . . Explosive 5 | . 2 3 . . . Electromagnetic . | . . . . . . Robot Hit Streak 33 | 4 13 33 4 . . Robot Miss Streak 9 | 1 9 5 1 . . Penetration Max . | . . . . . . Secondary Targets . | . . . . . . Shots Hit Robots 231 | 8 77 97 19 1 29 Core Hits 172 | 4 94 54 9 . 11 Critical Kills . | . . . . . . Critical Parts Destroyed 1 | . . . 1 . . Critical Strikes 4 | 1 . 1 1 . 1 Burn 2 | 1 . 1 . . . Destroy 1 | . . . 1 . . Smash 1 | . . . . . 1 Melee Attacks 87 | . . 45 . 1 41 Impact 3 | . . . . . 3 Slashing 83 | . . 45 . . 38 Piercing . | . . . . . . Sneak Attacks 5 | . . 1 . 1 3 Combat Hostiles . | . . . . . . Follow-up Attacks 5 | . . . . . 5 Damage Inflicted 4846 | 100 1324 1745 462 . 1215 Guns 2565 | 100 1011 1324 130 . . Cannons 473 | . . 141 332 . . Explosions 576 | . 296 280 . . . Melee 1215 | . . . . . 1215 Ramming 17 | . 17 . . . . Kinetic 1148 | . . 686 462 . . Thermal 1948 | 100 1069 779 . . . Explosive 518 | . 238 280 . . . Electromagnetic . | . . . . . . Impact 67 | . . . . . 67 Slashing 1148 | . . . . . 1148 Piercing . | . . . . . . Highest Corruption 2 | . . . . . 2 Average Corruption 2 | . . . . . 2 Corruption Purged . | . . . . . . Corruption Blocked . | . . . . . . Effects 3 | . . . . . 3 Matter Fused 1 | . . . . . 1 Energy Discharges 1 | . . . . . 1 Data Loss (minor) 1 | . . . . . 1 Overload Shots . | . . . . . . Overflow Damage 136 | . 7 12 11 . 106 Projectiles 11 | . . . 11 . . Explosions 19 | . 7 12 . . . Melee 106 | . . . . . 106 Knockbacks 8 | . . . 8 . . Impact . | . . . . . . Kinetic 7 | . . . 7 . . Secondary 1 | . . . 1 . . Self-Inflicted Damage 106 | . 95 11 . . . Shots 2 | . 1 1 . . . Rammed 3 | . 3 . . . . Targets Rammed 3 | . 3 . . . . Kicked . | . . . . . . Crushed . | . . . . . . Highest Temperature 288 | 90 288 45 90 . 11 Average Temperature 75 | 34 100 17 24 . 6 Received Heat Transfer 1163 | . 336 213 64 . 550 Siege Activations . | . . . . . . Robots Corrupted . | . . . . . . Combat Hostiles . | . . . . . . Parts Fried . | . . . . . . Impact Corruptions . | . . . . . . Robots Melted . | . . . . . . Combat Hostiles . | . . . . . . Parts Melted 8 | 2 1 5 . . . Heat Transferred 3072 | 346 1446 1280 . . . Parts Sabotaged . | . . . . . . Parts Stolen . | . . . . . . Parts Stripped . | . . . . . . Power Chain Reactions . | . . . . . . Alert | -11 -10 -10 -9 -9 -6 ------- Run | Yrd Mat Sub Rec Scr Fac Peak Influence 358 | 15 358 . 133 . 122 Initial 72 | . 9 . 72 . . Average 101 | 4 196 . 29 . 46 Maximum Alert Level 1 | . 1 . . . . Low Security (%) 72 | 100 37 . 100 . 100 Level 1 27 | . 62 . . . . Level 2 . | . . . . . . Level 3 . | . . . . . . Level 4 . | . . . . . . Level 5 . | . . . . . . High Security . | . . . . . . Max Security . | . . . . . . Squads Dispatched 9 | . 5 . . . 4 Investigation 4 | . 4 . . . . Extermination . | . . . . . . Reinforcement 4 | . 1 . . . 3 Assault . | . . . . . . Garrison 1 | . . . . . 1 Intercept . | . . . . . . Searches Triggered . | . . . . . . Construction Impeded . | . . . . . . Haulers Reinforced . | . . . . . . Active Scanning Responses . | . . . . . . Cargo Convoy Interrupts . | . . . . . . Stealth | -11 -10 -10 -9 -9 -6 --------- Run | Yrd Mat Sub Rec Scr Fac Distress Signals 2 | . 1 . . . 1 Communications Jammed . | . . . . . . Distress Signals . | . . . . . . Times Spotted 63 | . 23 21 3 . 16 Peak Tracking Total 7 | . 4 6 1 . 7 Tactical Retreats 3 | . 1 1 . . 1 Traps | -11 -10 -10 -9 -9 -6 ------- Run | Yrd Mat Sub Rec Scr Fac Traps Triggered 4 | . . 4 . . . Indirectly . | . . . . . . Trap Hack Attempts . | . . . . . . Triggered . | . . . . . . Disarmed . | . . . . . . Reprogrammed . | . . . . . . Reused . | . . . . . . Traps Extracted . | . . . . . . Installed . | . . . . . . Triggered . | . . . . . . Objects Rigged 3 | . 3 . . . . Exploded 1 | . 1 . . . . Machines | -11 -10 -10 -9 -9 -6 ---------- Run | Yrd Mat Sub Rec Scr Fac Machines Disabled 7 | . 6 1 . . . Max in Single Turn 4 | . 4 1 . . . Garrison Access 1 | . . . . . 1 Machines Repaired . | . . . . . . Machines Dismantled . | . . . . . . Machines Sabotaged . | . . . . . . Overloaded Fab Kills . | . . . . . . Hacking | -11 -10 -10 -9 -9 -6 --------- Run | Yrd Mat Sub Rec Scr Fac Machines Accessed 25 | . 8 1 11 4 1 Terminals 10 | . 5 . 5 . . Fabricators . | . . . . . . Repair Stations 1 | . 1 . . . . Recycling Units 8 | . 2 . 6 . . Scanalyzers . | . . . . . . Garrison Access 1 | . . . . . 1 Total Hacks 74 | . 24 5 33 11 1 Successful 53 | . 15 5 21 11 1 Failed 21 | . 9 . 12 . . Catastrophic 2 | . . . 2 . . Database Lockouts . | . . . . . . Manual 39 | . 21 . 18 . . Terminals 34 | . 19 . 15 . . Fabricators . | . . . . . . Repair Stations 2 | . 2 . . . . Recycling Units 21 | . 3 . 18 . . Scanalyzers . | . . . . . . Garrison Access 1 | . . . . . 1 Terminal Hacks 25 | . 4 5 5 11 . Record 15 | . . 5 . 10 . Part Schematic 1 | . . . 1 . . Robot Schematic 2 | . . . 2 . . Robot Analysis 4 | . 3 . 1 . . Prototype ID Bank 1 | . . . 1 . . Open Door 1 | . . . . 1 . Locate Traps 1 | . 1 . . . . Fabricator Hacks . | . . . . . . Repair Station Hacks 2 | . 2 . . . . Scan Component 1 | . 1 . . . . Repair 1 | . 1 . . . . Recycling Unit Hacks 6 | . . . 6 . . Report Inventory 6 | . . . 6 . . Scanalyzer . | . . . . . . Garrison Access Hacks 1 | . . . . . 1 Seal Access 1 | . . . . . 1 Unauthorized Hacks 19 | . 9 . 10 . . Terminals 9 | . 7 . 2 . . Botnet 4 | . 2 . 2 . . Detonate 1 | . 1 . . . . Skim 3 | . 3 . . . . Sabotage 1 | . 1 . . . . Fabricators . | . . . . . . Repair Stations . | . . . . . . Recycling Units 10 | . 2 . 8 . . Reject 5 | . . . 5 . . Recyclers 1 | . . . 1 . . Mask 2 | . . . 2 . . Tunnel 2 | . 2 . . . . Scanalyzers . | . . . . . . Garrison Access . | . . . . . . Data Cores Recovered . | . . . . . . Used . | . . . . . . Hacking Detections 17 | . 7 . 10 . . Full Trace Events 3 | . 2 . 1 . . Feedback Events . | . . . . . . Feedback Blocked . | . . . . . . Robot Schematics Acquired 2 | . . . 2 . . Robots Built . | . . . . . . Authchips . | . . . . . . Time . | . . . . . . Total Robot Build Rating . | . . . . . . Part Schematics Acquired 1 | . . . 1 . . Parts Built . | . . . . . . Authchips . | . . . . . . Time . | . . . . . . Total Part Build Rating . | . . . . . . Parts Repaired 1 | . 1 . . . . Time 26 | . 26 . . . . Parts Recycled . | . . . . . . Recycled Matter . | . . . . . . Retrieved Matter . | . . . . . . Retrieved Components . | . . . . . . Parts Scanalyzed . | . . . . . . Part Schematics Acquired . | . . . . . . Parts Damaged . | . . . . . . Bothacking | -11 -10 -10 -9 -9 -6 ------------ Run | Yrd Mat Sub Rec Scr Fac Used RIF Installer . | . . . . . . Robots Hacked 1 | . . . . 1 . Non-combat . | . . . . . . Combat 1 | . . . . 1 . Robot Hacks Applied 1 | . . . . 1 . parse_system 1 | . . . . 1 . Relay Couplers Released . | . . . . . . Fabnet Peak Effective % . | . . . . . . Robots Rewired 7 | . . . 7 . . Allies Hacked . | . . . . . . Hacks Repelled . | . . . . . . Allies | -11 -10 -10 -9 -9 -6 -------- Run | Yrd Mat Sub Rec Scr Fac Total Allies 7 | . . . 7 . . Largest Group 7 | . . . 7 5 5 Highest-Rated Group 104 | . . . 104 95 95 Highest-Rated Ally 34 | . . . 34 34 34 Total Orders 5 | . . . 2 3 . DROP 1 | . . . . 1 . COLLECT 4 | . . . 2 2 . Ally Attacks 10 | . . . 7 . 3 Total Damage 119 | . . . 58 . 61 Kills 1 | . . . 1 . . Allies Corrupted . | . . . . . . Allies Melted . | . . . . . . Intel | -11 -10 -10 -9 -9 -6 ------- Run | Yrd Mat Sub Rec Scr Fac Robot Analysis Total 4 | . 3 . 1 . . Derelict Logs Recovered 3 | . . . . 3 . Drone Launches . | . . . . . . Drone Recoveries . | . . . . . . Exploration | -11 -10 -10 -9 -9 -6 ------------- Run | Yrd Mat Sub Rec Scr Fac Turns Passed 15424 | 155 1730 5216 1785 6183 355 Spaces Moved 6855 | 99 555 1655 1072 3277 197 Core 13 | 3 . . . . 10 Treads 2079 | . 454 1625 . . . Legs 406 | 96 101 . . 150 59 Wheels 4357 | . . 30 1072 3127 128 Hover . | . . . . . . Flight . | . . . . . . Fastest Speed 50 | 50 120 120 129 175 50 Average Speed 190 | 117 266 223 138 185 113 Slowest Speed 330 | 120 320 320 175 330 190 Overloaded Moves . | . . . . . . Propulsion Burnouts . | . . . . . . Robots Hopped . | . . . . . . Cave-ins Triggered . | . . . . . . Exploration Rate (%) 61 | 5 89 74 97 96 6 Regions Visited 5 Branch Regions 3 Pre-discovered Areas 4 | . 2 1 . 1 . Known Exits Taken . | . . . . . . Unknown Exits Taken 5 | 1 1 1 1 1 . Scrap Searched 9 | . . 2 . 7 . Spaces Dug 21 | . . 18 3 . . Terrain Destroyed 109 | . 71 33 5 . . Melee 10 | . . 10 . . . Projectile 9 | . . 4 5 . . AOE 90 | . 71 19 . . . Terrain Rammed . | . . . . . . Walls Destroyed . | . . . . . . Machines Disabled . | . . . . . . Actions | -11 -10 -10 -9 -9 -6 --------- Run | Yrd Mat Sub Rec Scr Fac Total 8796 | 119 701 2940 1344 3414 278 Wait 1321 | . 49 1086 131 55 . Move 6850 | 98 554 1654 1071 3276 197 Hop . | . . . . . . Pick Up 117 | 6 19 17 33 36 6 Fast Attach 27 | 7 3 7 1 1 8 Attach 26 | . 3 4 . 4 15 Detach 10 | . . 2 . 1 7 Swap 54 | 1 13 30 6 3 1 Drop 85 | . 7 19 13 37 9 Fire 140 | 7 50 65 18 . . Melee 81 | . . 45 . 1 35 Ram . | . . . . . . Kick . | . . . . . . Crush 3 | . 3 . . . . Escape Stasis . | . . . . . . Rewire 71 | . . . 71 . . Trap . | . . . . . . Miscellaneous 11 | . . 11 . . . Route ------- -11/Scrapyard -10/Materials (discovered 5 exits: [*Mat x2] / [*Min x2] / *Sub) -10/Subcaves (discovered 2 exits: [*Mat] / *Rec) -9/Recycling (discovered 2 exits: [*Fac] / *Scr) -9/Scraptown (discovered 2 exits: *Fac x2) -6/Factory History --------- Turn | Location | Event 7 | -11/Scrapyard | Discovered new exit (range 16) 156 | -11/Scrapyard | Entered Materials 327 | -10/Materials | Build established: Mutant 677 | -10/Materials | Discovered new exit (range 13) 1018 | -10/Materials | Discovered new exit (range 10) 1199 | -10/Materials | Core integrity fell below 50% 1538 | -10/Materials | Discovered new exit (range 13) 1615 | -10/Materials | Repaired Lgt. Treads 1764 | -10/Materials | Discovered new exit (range 15) 1867 | -10/Materials | Discovered new exit (range 8) 1886 | -10/Materials | Entered Subcaves 1972 | -10/Subcaves | Learned location of Zion (-6) 1972 | -10/Subcaves | Met a Zionite searching for "candidates" 4675 | -10/Subcaves | A swath of the cavern ceiling suddenly collapsed 4850 | -10/Subcaves | Ambushed by Subdweller buried in earth 5048 | -10/Subcaves | Discovered new exit (range 11) 5156 | -10/Subcaves | Ambushed by Subdweller buried in earth 5383 | -10/Subcaves | Build established: Subdweller-Mutant 6415 | -10/Subcaves | Visited Clippyterm 6422 | -10/Subcaves | Learned Factory trap positions 6422 | -10/Subcaves | Learned Research security intel 6760 | -10/Subcaves | Shifting Twisted Machinery released Slug Cannon 6812 | -10/Subcaves | Shifting Twisted Machinery released Scrap Shield 6863 | -10/Subcaves | Shifting Twisted Machinery released Barrage Gun 6925 | -10/Subcaves | Shifting Twisted Machinery released Shrapnel Trap 6942 | -10/Subcaves | A swath of the cavern ceiling suddenly collapsed 7050 | -10/Subcaves | Core integrity fell below 20% 7075 | -10/Subcaves | Discovered new exit (range 16) 7102 | -10/Subcaves | Entered Recycling 7657 | -9/Recycling | Build established: Commander-Mutant 8084 | -9/Recycling | Discovered new exit (range 14) 8347 | -9/Recycling | Scanned before Scraplab entrance 8365 | -9/Recycling | Entered Scraplab 8375 | -9/Recycling | Discovered new exit (range 3) 8887 | -9/Recycling | Entered Scraptown 8887 | -9/Scraptown | Accompanied by 5 allies 9115 | -9/Scraptown | Visited SPCMW 9269 | -9/Scraptown | Visited Assassins FH 9301 | -9/Scraptown | Visited Spacefarers 10008 | -9/Scraptown | Visited Symbiants 10087 | -9/Scraptown | Visited The Evicted 10155 | -9/Scraptown | Visited TADAMA 10234 | -9/Scraptown | Scanned Subdweller tech in exchange for log data 10238 | -9/Scraptown | Learned Research trap positions 10239 | -9/Scraptown | Learned Research interactive machine intel 10241 | -9/Scraptown | Learned location of Testing (-2) 10272 | -9/Scraptown | Discovered new exit (range 5) 10812 | -9/Scraptown | Visited UFD Registry 10812 | -9/Scraptown | Registered with UFD as "Matrixfunk" 10855 | -9/Scraptown | Visited DA-N13 Charitable Foundation 10869 | -9/Scraptown | Found DCF Scrap (27 items) 10912 | -9/Scraptown | Visited Abandonware Association 10941 | -9/Scraptown | Learned abandonware demo "SHUTEYE.EXE" 10992 | -9/Scraptown | Visited Supply Room 11044 | -9/Scraptown | Visited Scrap Suit Storage 11112 | -9/Scraptown | Visited Supply Room 11241 | -9/Scraptown | Visited Sword Containment 11323 | -9/Scraptown | Visited Junk Repository 11450 | -9/Scraptown | Visited Junk Repository 11627 | -9/Scraptown | Discovered new exit (range 5) 11767 | -9/Scraptown | Delivered Scrap Shield to a Scientist 12093 | -9/Scraptown | Visited Derelict Rescue Squad 12103 | -9/Scraptown | Found DRS Beacon 13436 | -9/Scraptown | Found Scrap Suit 13895 | -9/Scraptown | Found Scrap Suit 15070 | -9/Scraptown | Entered Factory 15070 | -6/Factory | Accompanied by 5 allies 15070 | -6/Factory | Evolved 8 slots: Power x1, Propulsion x2, Utility x4, Weapon x1 15071 | -6/Factory | Loaded intel: 80 trap records 15119 | -6/Factory | Garrison activated, responded to threat 15183 | -6/Factory | Lost 4 allies 15218 | -6/Factory | Lost 7 parts (1p4n1u1w) 15309 | -6/Factory | Spotted B-75 Beast 15397 | -6/Factory | Core integrity fell below 50% 15419 | -6/Factory | Core integrity fell below 20% 15425 | -6/Factory | Destroyed by H-66 Slayer with Heavy Assault Rifle Last Messages --------------- 15415_ Scrap Suit secures Hvy. Assault Rifle. 15415_ Slug penetrates Wall. 15415_ Penetrated by Slug. 15415_ Com. Wheel destroyed. 15415_ Penetrated by Slug. 15415_ Dropped Lrg. Storage Unit. 15416_ Discarded Scrap Suit. 15417_ Dropped Huge Storage Unit. 15418_ Dropped Imp. Reaction Control System. 15418_ Slug penetrates Wall. Companion Sword: "Warning: This is not my ready state." 15418_ Penetrated by Slug. 15419_ Dropped Magnetic Acceleration Cannon. 15419_ Penetrated by Slug. 15420_ Acquired DRS Beacon. 15421_ Slug penetrates Wall. 15421_ Penetrated by Slug. 15424_ Slug penetrates Wall. 15425_ Penetrated by Slug. 15425_ Slug penetrates Wall. Map ----- +----------------------------------------------------+ | ???## ??????????????????????????????????? | | ???## ??????????????????????????????????? | | ##?## ### ???????????????????????????????????? | | #???# T#?????????????????????????????????????? | | ##?## #?????????????????????????????????????? | | ##### #??????????????????????????????????????? | | ! * #??????????????????????????????????????? | | ##### #??????????????????????????????????????? | | ###?# #??????????????????????????????????????? | | ?# #??????????????????????????????????????? | | " # #??????????????????????????????????????? | | " # #??????????????????????????????????????? | | " / #??????????????????????????????????????? | | " ^# #??????????????????????????????????????? | | " # % #????????????????????#?????????????????? | | " ?# #??????????????????? #?????????????????? | | " ?# #??????????????????? #?????????????????? | | "??# #?????????????????? #?????????????????? | | "??# % #?????????????????? #?????????????????? | | ???# #????????????????? #?????????????????? | | #???# #????????????????? #?????????????????? | | ????# #???????????????? #?????????????????? | | ????#=% #???????????????? #?????????????????? | | "???# #??????????????? #?????????????????? | | " ??# ################ #?????????????????? | | " ?# hh @ #?????????????????? | | # ] +?????????????????? | | +! |h| #?????????????????? | | "" # ![![! #?????????????????? | | ???"# o w=%= #?????????????????? | | ??S?####+################# k#?????????????????? | | ?""??? ??????????????? #?????????????????? | | ?"??# "" ????????????? u ???????????????? | | ????# "" #???????????? ????????????? | | ????# """ "" #???????????? ?????????? | | ????# """ "" #???????????? H ????????? | | ????# """ T" #???????????? ????????? | | ????# "" #????????????########+#####?????????? | | ????# "" #???????????????????????????????????? | | ????# #???????????????????????????????????? | | ??????########???????????????????????????????????? | | ?????????????????????????????????????????????????? | | ?????????????????????????????????????????????????? | | ?????????????????????????????????????????????????? | | ?????????????????????????????????????????????????? | | ?????????????????????????????????????????????????? | | ?????????????????????????????????????????????????? | | ?????????????????????????????????????????????????? | | ?????????????????????????????????????????????????? | | ?????????????????????????????????????????????????? | +----------------------------------------------------+ Best States ------------- Heat Dissipation 39 Coolant Potential 50 Energy Generation 24 Energy Capacity 250 Matter Stores 300 Matter Capacity 300 Sight Range 22 Terrain Scan Range 20 Terrain Scan Density 110 Armor Coverage 800 Core Shielding 20 Evasion (%) 55 Melee Accuracy 5 Recoil Reduction 2 Authchip Count 13 Item Schematics ----------------- Imp. Light Armor Plating | -9/Recycling | Hacked Robot Schematics ------------------ S-10 Pest | -9/Recycling | Hacked A-02 Transporter | -9/Recycling | Hacked Fabricated ------------ Nothing Alien Tech Used ----------------- None Achievements -------------- None Challenges ------------ None Game ------ Seed WavePitchforkReconfigurator Manual? 0 Play Time 01:47:08 Cumulative 176.0 hours Start 2025.01.10 @ 15:30:30 End 2025.01.10 @ 18:28:38 Sessions 6 Manual Loads 0 Difficulty Rogue Special Mode None Game No. 53 Rogue 53 Adventurer 0 Explorer 0 Win Type - Total 2 Types 1/0/1/0/0/0/0/0/0 Lore% 59 Gallery% 70 Achievement% 61 Wizard Run 0 Options --------- Layout 0 ASCII 0 Keyboard 1 Movement Arrows Keybinds 0 Fullscreen 2 Font 36/Terminus++ Map View 76x50 Zoom Use 0% Tactical HUD 1 Map Filters NONE Filters NONE Steam 1 RUN: 0ac62e98-1b95-476d-aea4-06efb3c7222c